[Event "87th Spanish Championship 2022"]
[Site "Linares"]
[Date "2022.08.12"]
[Round "2.18"]
[White "Lianes Garcia, Marcos"]
[Black "Guerra Bastida, Diego"]
[Result "1-0"]
[ECO "E39"]
[WhiteElo "2411"]
[BlackElo "2242"]
[Annotator "TA"]
[PlyCount "103"]
[EventDate "2022.08.11"]
[EventType "swiss"]
[EventCountry "ESP"]
[SourceTitle "playchess.com"]
[Source "ChessBase"]
[SourceQuality "1"]
[TimeControl "5400+30"]

{[%evp 14,103,32,30,45,45,91,45,67,34,43,0,0,12,0,0,29,-8,29,39,34,31,65,70,71,64,76,66,79,43,39,37,32,39,155,147,169,154,155,154,168,156,215,208,202,206,206,190,191,187,220,187,193,175,223,185,189,187,292,283,278,277,366,357,312,308,708,706,680,661,560,572,1247,790,1898,1597,1354,1883,29977,29979,29979,29979,29983,29984,29984,29985,29985,29971,29981,29977,5122,5085]} 1. d4 {[%emt 0:00:06]} Nf6 {[%emt 0:00:30]} 2. c4 {[%emt 0:00:05]} e6 {[%emt 0:00:35]} 3. Nc3 {[%emt 0:00:08]} Bb4 {[%emt 0:00:23]} 4. Qc2 {[%emt 0:00:05]} c5 {[%emt 0:00:49]} 5. dxc5 {[%emt 0:00:14]} O-O {[%emt 0:01:01]} 6. a3 {[%emt 0:13:06]} Bxc5 {[%emt 0:00:39]} 7. Nf3 {[%emt 0:00:09]} b6 {[%emt 0:02:41] 7...d5 injects fresh life into this line.} 8. Bg5 {[%emt 0:21:03]} Be7 {[%emt 0:07:41] E39: Nimzo-Indian: Classical: 4...c5 5 dxc5 0-0.} 9. e4 {[%emt 0:04:16][%cal Be2e4,Be4e5][%mdl 32]} Nc6 {[%emt 0:03:43] [#]} (9... Bb7 $14 {should be considered.}) 10. e5 $146 {[%emt 0:04:58]} ({Predecessor:} 10. Be2 Bb7 11. O-O Rc8 12. Rad1 Na5 13. Rd4 h6 14. Bh4 d5 15. exd5 exd5 16. Rfd1 {1-0 (30) Seirawan,Y (2525)-Kudrin,S (2520) Berkeley 1984}) 10... Ng4 {[%emt 0:05:04][%csl LRe5,LRg5] White is slightly better.} 11. Bxe7 {[%emt 0:02:57]} (11. Bf4 $5 {[%cal Rh2h3]}) 11... Qxe7 {[%emt 0:00:25]} 12. Qe4 {[%emt 0:01:43]} (12. Bd3 $5 {[%cal Rd3h7]}) 12... f5 {[%emt 0:01:02]} 13. exf6 {[%emt 0:00:15]} Nxf6 {[%emt 0:00:09][%cal Bg4f6,Bf6h5,Bh5f4][%mdl 32]} 14. Qh4 {[%emt 0:00:19]} Qc5 {[%emt 0:07:58]} 15. O-O-O {[%emt 0:08:12]} Qh5 {[%emt 0:14:57]} 16. Qxh5 {[%emt 0:09:44]} Nxh5 {[%emt 0:00:11]} 17. Ne4 {[%emt 0:04:22]} d5 {[%emt 0:10:28]} 18. cxd5 {[%emt 0:03:20]} exd5 {[%emt 0:00:09]} 19. Rxd5 {[%emt 0:00:11]} Nf4 {[%emt 0:02:18]} 20. Rd6 {[%emt 0:01:42]} Na5 {[%emt 0:01:10]} 21. b4 {[%emt 0:02:38]} (21. Nfd2 $5 {[%cal Rg2g3]}) 21... Bb7 {[%emt 0:01:53]} 22. Ned2 {[%emt 0:03:12]} Rac8+ {[%emt 0:00:48]} 23. Kb2 {[%emt 0:00:13]} Nc6 {[%emt 0:01:10] Black is now going downhill.} (23... Bxf3 $14 24. Nxf3 Nxg2 $1) 24. g3 $36 {[%emt 0:02:27][%mdl 2048] Black is under strong pressure.} Ng6 {[%emt 0:00:40]} 25. Bc4+ {[%emt 0:00:16]} Kh8 {[%emt 0:00:11]} 26. Bd5 {[%emt 0:01:09] White is more active.} Ba8 {[%emt 0:02:29]} 27. Rc1 {[%emt 0:01:28][%cal Rd5c6]} Nce5 {[%emt 0:01:41]} (27... Nce7 $16) 28. Nxe5 {[%emt 0:01:34]} Nxe5 {[%emt 0:00:06]} 29. Rxc8 {[%emt 0:00:56]} Rxc8 {[%emt 0:00:09]} 30. Bxa8 {[%emt 0:00:19]} Rxa8 $18 {[%emt 0:00:08][%mdl 4096] Endgame KRN-KRN} 31. h3 {[%emt 0:00:24]} g5 {[%emt 0:02:09]} 32. Rd5 {[%emt 0:01:50]} Re8 {[%emt 0:00:35]} 33. Kc3 {[%emt 0:01:22]} h6 {[%emt 0:01:29]} (33... g4 {was called for.}) 34. b5 {[%emt 0:00:48]} Re7 {[%emt 0:01:51]} 35. Kd4 {[%emt 0:00:15]} Nf7 {[%emt 0:01:00]} (35... Nd7 $142 36. Ne4 Nf8) 36. Ne4 {[%emt 0:01:45]} Kg7 {[%emt 0:01:30]} 37. a4 {[%emt 0:03:52]} Rc7 {[%emt 0:00:22] [#]} 38. Nd6 $1 {[%emt 0:00:31]} Nxd6 {[%emt 0:04:37]} 39. Rxd6 {[%emt 0:00:01] KR-KR} Rf7 $2 {[%emt 0:00:12]} (39... h5 40. Ke5 Rf7) 40. Kd5 {[%emt 0:04:05]} Rc7 {[%emt 0:03:22]} 41. Rc6 {[%emt 0:00:10]} Rf7 {[%emt 0:00:34]} 42. Kd6 {[%emt 0:01:20] Hoping for Rc7.} Rf6+ {[%emt 0:00:21]} 43. Kc7 {[%emt 0:00:45] Black must now prevent Rxf6.} Rxf2 {[%emt 0:00:23]} 44. Kb8 {[%emt 0:00:17]} Rf3 {[%emt 0:01:16]} 45. Kxa7 {[%emt 0:01:12]} Rxg3 {[%emt 0:00:10]} 46. Kxb6 {[%emt 0:00:49]} Rxh3 {[%emt 0:00:13]} 47. a5 {[%emt 0:00:47][%cal Ba4a5,Ba5a6,Ba6a7][%mdl 32]} Ra3 {[%emt 0:00:08]} 48. a6 {[%emt 0:00:23]} g4 {[%emt 0:00:05]} 49. a7 {[%emt 0:00:24]} g3 {[%emt 0:00:06] [#]} 50. Rc3 $3 {[%emt 0:01:20][%mdl 512]} g2 {[%emt 0:00:24]} (50... Rxc3 51. a8=Q) 51. Rc1 {[%emt 0:00:07]} ({Weaker is} 51. Rxa3 g1=Q+ 52. Kc6 Qc1+ 53. Kb7 Qxa3 $11) 51... h5 {[%emt 0:01:48]} 52. Rg1 {[%emt 0:00:05] Weighted Error Value: White=0.07 (flawless) /Black=0.42} 1-0

[Event "87th Spanish Championship 2022"]
[Site "Linares"]
[Date "2022.08.12"]
[Round "2.19"]
[White "Massanet Massanet, Sebastian"]
[Black "Suarez Uriel, Adrian"]
[Result "1-0"]
[ECO "A50"]
[WhiteElo "2232"]
[BlackElo "2386"]
[Annotator "TA"]
[PlyCount "57"]
[EventDate "2022.08.11"]
[EventType "swiss"]
[EventCountry "ESP"]
[SourceTitle "playchess.com"]
[Source "ChessBase"]
[SourceQuality "1"]
[TimeControl "5400+30"]

{[%evp 9,57,49,63,63,69,71,80,72,105,94,149,100,175,153,206,155,274,238,297,287,282,288,295,289,282,246,427,430,414,401,1168,1191,2167,2164,2022,1957,29985,29986,29986,29987,29987,1525,29988,29989,29989,2049,2494,2445,29993,29994]} 1. d4 {[%emt 0:00:18]} Nf6 {[%emt 0:00:14]} 2. c4 {[%emt 0:00:29]} b6 {[%emt 0:00:06]} 3. f3 {[%emt 0:00:43]} Nc6 {[%emt 0:00:15]} 4. Nc3 {[%emt 0:02:29]} e5 {[%emt 0:00:37]} 5. d5 {[%emt 0:01:12]} Ne7 {[%emt 0:00:02]} 6. e4 {[%emt 0:00:52] A50: Queen's Fianchetto Defence (1 d4 Nf6 2 c4 b6).} Ng6 {[%emt 0:00:05]} 7. h4 {[%emt 0:03:23]} Bc5 {[%emt 0:06:40][%cal Og6h4]} 8. Nge2 {[%emt 0:01:49] White is better.} h5 {[%emt 0:06:58] [#]} 9. Bg5 $146 {[%emt 0:07:49]} ({Predecessor:} 9. a3 a5 10. Na4 Be7 11. Be3 d6 12. g3 Nd7 13. Bh3 Ba6 14. b3 b5 15. cxb5 Bxb5 {1-0 (31) Idani,P (2588)-Denishev,M (2159) Chess.com INT 2020}) 9... c6 {[%emt 0:01:07]} (9... Be7 $142) 10. d6 {[%emt 0:33:55]} ({White should play} 10. Ng3) 10... b5 {[%emt 0:07:11] [#]} (10... Bb7 $16) 11. Ng3 $1 $18 {[%emt 0:02:47]} ({Much less strong is} 11. cxb5 Qb6 $16) 11... Nf4 {[%emt 0:16:58]} (11... Qb6 $16 {is a better defense.} 12. Qd2 bxc4) 12. Qd2 {[%emt 0:05:00]} ({Don't do} 12. cxb5 Ne6 13. Nf5 Kf8) 12... bxc4 {[%emt 0:08:47]} (12... Ne6 $16 {might work better.}) 13. Bxc4 {[%emt 0:11:24]} Rb8 {[%emt 0:14:04]} 14. Bxf4 {[%emt 0:06:12]} exf4 {[%emt 0:00:05]} 15. Qxf4 {[%emt 0:00:16] Threatens to win with Qe5+.} Kf8 {[%emt 0:10:03]} 16. Qe5 {[%emt 0:10:17]} ({Not} 16. Qg5 Qa5 $16) 16... Bb4 {[%emt 0:00:15]} 17. Nf5 {[%emt 0:07:59]} g6 $2 {[%emt 0:02:34]} (17... Ne8 {was called for.} 18. O-O-O f6) 18. Ne7 {[%emt 0:01:13]} Kg7 {[%emt 0:00:01]} 19. Qg5 {[%emt 0:01:01] aiming for e5.} Ba5 {[%emt 0:03:06] [#]} (19... Ba6 $142) 20. Bxf7 $1 {[%emt 0:00:46][%mdl 512]} Kxf7 {[%emt 0:00:49]} (20... Rxb2 21. Qxg6+) 21. Qxg6+ Ke6 22. e5 {[%emt 0:00:50][%csl Ge5][%cal Rg6f6][%mdl 64] Pin} Rf8 {[%emt 0:01:41]} 23. Qf5+ Kf7 24. Qxf6+ {[%emt 0:00:26]} Ke8 {[%emt 0:00:02]} 25. Qg6+ {[%emt 0:00:33]} Rf7 {[%emt 0:00:01]} 26. Nf5 {[%emt 0:00:55]} Kf8 {[%emt 0:00:42]} 27. Qxh5 {[%emt 0:00:37]} (27. Rh3 $142 Rb4 28. Qh6+ Kg8 29. Rg3+ Rg4 30. fxg4 Rh7 31. Ne7+ Qxe7 32. dxe7) 27... Rxf5 {[%emt 0:00:45]} 28. Qxf5+ {[%emt 0:00:13]} Kg7 {[%emt 0:00:05]} 29. Rh3 {[%emt 0:00:35] Black got outplayed after the opening.  Weighted Error Value: White=0.11 (very precise) /Black=1.04} 1-0

[Event "87th Spanish Championship 2022"]
[Site "Linares"]
[Date "2022.08.12"]
[Round "2.20"]
[White "Valmana Canto, Jaime"]
[Black "Silva Lucena, Cristian"]
[Result "0-1"]
[ECO "E71"]
[WhiteElo "2406"]
[BlackElo "2212"]
[Annotator "TA"]
[PlyCount "130"]
[EventDate "2022.08.11"]
[EventType "swiss"]
[EventCountry "ESP"]
[SourceTitle "playchess.com"]
[Source "ChessBase"]
[SourceQuality "1"]
[TimeControl "5400+30"]

{[%evp 12,130,25,31,25,43,47,39,39,39,35,35,45,12,23,18,22,17,15,25,22,-15,-10,-14,-4,-7,74,-22,-20,-20,-22,-45,-40,-103,-18,-26,-12,-10,-17,-68,-31,-98,0,-21,0,-13,0,0,0,-68,-60,-135,-152,-137,-128,-198,-181,-176,-191,-157,-167,-181,-177,-173,-146,-155,-142,-261,-258,-250,-236,-243,-183,-175,-181,-166,-169,-159,-168,-204,-189,-187,-193,-245,-245,-245,-245,-245,-169,-169,-169,-191,-185,-206,-225,-218,-184,-179,-66,-75,0,-530,-454,-487,-450,-362,-413,-1593,-904,-1186,-1805,-1257,-1254,-29986,-29987,-29987,-29979,-29971,-29973,-29996,-29997]} 1. d4 Nf6 2. c4 g6 3. Nc3 Bg7 4. e4 d6 5. h3 O-O 6. Be3 c5 7. Nf3 Qa5 {Threatens to win with ...Nxe4. E90: King's Indian: Classical: Early deviations and 6 h3.} 8. Bd3 {8.Bd3 is better than 8.Qd2.} cxd4 9. Nxd4 Nc6 {White is slightly better.} 10. O-O Nxd4 11. Bxd4 Be6 {[#]} 12. f4 $146 {[%cal Bf2f4,Bf4f5][%mdl 32]} ({Predecessor:} 12. Rc1 Rfc8 13. b3 a6 14. Qe2 Rab8 15. Ba7 Ra8 16. Bd4 Rab8 17. Ba7 Ra8 18. Bd4 Rab8 {½-½ (18) Martinovic,S (2542)-Lagarde,M (2647) Terme Catez 2021}) 12... Rfc8 13. b3 Nd5 14. Bxg7 Nxc3 15. Bxc3 Qxc3 16. f5 Bd7 17. Qf3 Rf8 18. Rad1 Kg7 (18... Bc6 $11 {keeps the balance.}) 19. Kh1 (19. e5 $1 $16) 19... Qe5 20. Bb1 Bc6 {Prevents Rd5.} 21. Qg4 a5 22. Rd2 (22. Bd3 $15) 22... Kh8 (22... a4 $1 $17) 23. Rdf2 Rg8 24. f6 e6 25. h4 (25. Rf3 $11) 25... g5 $1 $15 26. h5 (26. Rf3 $1 $15) 26... b6 (26... b5 $17 27. cxb5 Bxb5) 27. Rf3 Rac8 28. Qg3 g4 29. Qxe5 dxe5 (29... gxf3 30. Qh2 fxg2+ 31. Qxg2 $1 Rxg2 32. Kxg2 $16) 30. Rd3 (30. Rg3 $11) 30... Rg5 ({Don't play} 30... Bxe4 31. Rd7 Bxb1 32. Rxb1 $11) 31. Rfd1 (31. Kg1 $15) 31... Rxh5+ $17 32. Kg1 Rg5 33. Rd8+ (33. Kh2 $17) 33... Rg8 $1 $19 34. Rxc8 Rxc8 {[%mdl 4096] Endgame KRB-KRB} 35. Kf2 h5 $1 36. Rh1 Kh7 37. Rxh5+ Kg6 38. Rh4 Kg5 ({Inferior is} 38... Kxf6 39. Rxg4 b5 40. cxb5 Bxb5 41. a4 $15) 39. Kg3 (39. Rh1 $17) 39... Rd8 $1 (39... Kxf6 40. Kxg4 Rd8 41. Rh1 $17) 40. Rh1 {Against Rd1} Rd2 ({Stronger than} 40... Kxf6 41. Rf1+ Ke7 42. Kxg4 $17) 41. Re1 Kxf6 {aiming for ...Kg5.} 42. Kxg4 Rxg2+ 43. Kf3 Rb2 44. Ke3 Ke7 {Black is more active.} 45. Rf1 a4 46. bxa4 Bxa4 47. Bd3 (47. Kd3 $142) 47... Rxa2 48. Rb1 Ra3 {White must now prevent ...Bc2.} 49. Kd2 {Against Bc2} Rb3 50. Ra1 {[#]} b5 51. c5 Kd7 {Strongly threatening ...Kc6.} 52. Rf1 Kc6 53. Rxf7 Kxc5 54. Rc7+ {[#]} Kd6 (54... Kb4 $1 $19 {And now ...Rb2+ would win.} 55. Rc6 Rb2+ 56. Ke3 Rg2 57. Rxe6 Rg5) 55. Ra7 Kc5 ({Black should play} 55... Rb2+ $17 56. Kc3 Rb3+ 57. Kd2 Kc5 58. Rc7+ Kd6) 56. Ra6 $2 {[%mdl 8192]} (56. Rc7+ $1 $11 {and White has nothing to worry.} Kb4 57. Rc6) 56... Rb2+ 57. Kc1 Rg2 {Hoping for ...Kd4.} 58. Rxe6 Kd4 59. Bb1 (59. Rd6+ $142 Kc3 60. Bf1 Rc2+ 61. Kb1) 59... Bb3 60. Rh6 Bc4 61. Bc2 b4 {( -> ...b3)} 62. Rb6 Kc3 {Black mates.} 63. Bd1 Rg1 64. Rd6 Be2 65. Rd3+ Kxd3 {Weighted Error Value: White=0.50/Black=0.21 (precise)} 0-1

[Event "87th Spanish Championship 2022"]
[Site "Linares"]
[Date "2022.08.12"]
[Round "2.21"]
[White "Jimenez Fernandez, Rebeca"]
[Black "Argandona Riveiro, Inigo"]
[Result "1-0"]
[ECO "B06"]
[WhiteElo "1908"]
[BlackElo "2393"]
[Annotator "TA"]
[PlyCount "91"]
[EventDate "2022.08.11"]
[EventType "swiss"]
[EventCountry "ESP"]
[SourceTitle "playchess.com"]
[Source "ChessBase"]
[SourceQuality "1"]
[TimeControl "5400+30"]

{[%evp 10,91,58,41,46,52,60,54,61,46,42,16,48,16,20,-84,-77,-103,-66,-64,-59,-52,-56,-91,-82,-91,-70,-93,-103,-100,-92,-102,-75,-78,0,0,0,14,11,16,246,230,242,237,453,452,578,558,642,652,641,643,629,575,720,712,695,684,791,770,831,828,893,883,912,896,1499,1126,1352,1065,1672,1624,1684,1635,1665,1627,1636,1621,1595,1510,29980,29981,29977,29972]} 1. e4 {[%emt 0:00:03]} g6 {[%emt 0:05:54]} 2. d4 {[%emt 0:00:03]} c6 {[%emt 0:00:05]} 3. Nc3 {[%emt 0:00:37]} d5 {[%emt 0:00:10]} 4. h3 {[%emt 0:02:25]} Bg7 {[%emt 0:00:24]} 5. Nf3 {[%emt 0:00:34]} Nh6 {[%emt 0:00:11]} 6. Bf4 {[%emt 0:05:26]} O-O {[%emt 0:00:06] B15: Caro-Kann: 3 Nc3: 3...g6 and 3...dxe4 4 Nxe4 Nf6 5 Nxf6+ exf6.} 7. Qd2 {[%emt 0:06:24]} dxe4 {[%emt 0:00:03]} 8. Nxe4 {[%emt 0:00:14]} ({But not} 8. Bxh6 $6 exf3 9. Bxg7 Kxg7 $11) 8... Nf5 {[%emt 0:00:02][%cal Rf5d4] White is slightly better.} 9. O-O-O {[%emt 0:00:44] White is more active.} Be6 {[%emt 0:01:44][%cal Bc8e6,Be6d5,Bd5e4,Be4f5][%mdl 32] [#]} 10. g4 $146 {[%emt 0:12:21]} ({Predecessor:} 10. Kb1 a5 11. c4 Na6 12. g4 Nd6 13. Nxd6 exd6 14. Bh6 Rb8 15. Bxg7 Kxg7 16. d5 cxd5 17. cxd5 {1-0 (30) Socko,B (2557)-Lomandong,M (1978) Monte Carlo 2019}) 10... Bd5 {[%emt 0:02:20]} 11. gxf5 {[%emt 0:07:51]} Bxe4 {[%emt 0:00:09] [#]} 12. Be2 {[%emt 0:09:05]} (12. fxg6 $1 $11 {keeps the balance.} Bxf3 (12... fxg6 13. Bc4+) 13. gxh7+ Kh8 14. Rg1) 12... Bxf5 $17 {[%emt 0:06:58]} 13. h4 {[%emt 0:04:39]} Qd5 {[%emt 0:06:50]} 14. Kb1 {[%emt 0:04:45]} h5 {[%emt 0:19:25]} 15. Ne5 $1 {[%emt 0:08:29]} Bxe5 {[%emt 0:06:33]} 16. Bxe5 {[%emt 0:00:45] Black must now prevent Qh6.} Nd7 {[%emt 0:01:16][%cal Bb8d7,Bd7f6,Bf6e4][%mdl 32]} 17. Bh2 {[%emt 0:09:19]} Kh7 {[%emt 0:02:06]} 18. Rhg1 {[%emt 0:02:57]} Nf6 {[%emt 0:05:29]} 19. f3 {[%emt 0:01:24]} Rad8 {[%emt 0:05:39]} 20. Rg5 {[%emt 0:04:03]} c5 {[%emt 0:06:04][%cal Rc5d4]} 21. Bd3 {[%emt 0:02:11][%cal Og5f5] [#] Strongly threatening Rxf5!} Qxf3 {[%emt 0:06:58]} (21... Qxd4 $2 22. Rxf5 Rd7 23. Be5 $18) ({Black should try} 21... e6 $1 $17 22. Be5 Nd7) 22. Rxf5 $11 {[%emt 0:11:23]} gxf5 {[%emt 0:01:05]} 23. Rf1 {[%emt 0:00:08]} Ne4 {[%emt 0:05:06]} 24. Qe1 {[%emt 0:00:20]} Qxf1 {[%emt 0:00:49] Loses the game.} 25. Bxf1 $18 {[%emt 0:00:16]} Rxd4 {[%emt 0:00:17]} 26. Bd3 {[%emt 0:01:04]} Rfd8 $2 {[%emt 0:09:21]} (26... Rg8 27. Be5 Rd5) 27. Qe2 {[%emt 0:01:28]} c4 {[%emt 0:00:19]} 28. Qxh5+ {[%emt 0:00:25]} Kg8 {[%emt 0:00:01]} 29. Be5 {[%emt 0:00:35][%csl Ge5][%cal Rh5h8]} Nf6 {[%emt 0:00:59]} 30. Qg5+ {[%emt 0:01:15]} Kf8 {[%emt 0:00:01]} 31. Qh6+ {[%emt 0:00:56]} Ke8 {[%emt 0:00:40] ...Rg4 is the strong threat.} 32. Bxd4 {[%emt 0:01:46]} cxd3 {[%emt 0:00:27]} 33. Bc3 {[%emt 0:01:40]} ({Not} 33. Bxf6 d2 34. Qh8+ Kd7 $11) 33... d2 {[%emt 0:01:37]} 34. Bxd2 {[%emt 0:00:07]} Ne4 {[%emt 0:00:01]} 35. Bc1 {[%emt 0:00:29]} Rd1 {[%emt 0:00:02]} 36. c3 {[%emt 0:00:34]} Rh1 {[%emt 0:00:40]} 37. h5 {[%emt 0:00:33]} Ng3 {[%emt 0:01:22]} 38. Qh8+ {[%emt 0:00:31]} Kd7 {[%emt 0:00:01]} 39. Qd4+ {[%emt 0:00:18]} Ke8 {[%emt 0:00:01]} 40. Qxa7 {[%emt 0:00:45] And now Qb8+ would win.} f4 {[%emt 0:00:58]} 41. Qb8+ {[%emt 0:00:21]} Kd7 {[%emt 0:00:01]} 42. Qxb7+ {[%emt 0:00:17]} Ke6 {[%emt 0:00:00]} 43. Kc2 {[%emt 0:00:50]} Rh2+ {[%emt 0:00:42]} 44. Kb3 {[%emt 0:00:10]} Nxh5 {[%emt 0:00:02]} 45. Qe4+ {[%emt 0:00:17]} Kf6 {[%emt 0:00:10]} 46. Bxf4 {[%emt 0:00:14] Weighted Error Value: White=0.13 (very precise) /Black=0.45} 1-0

[Event "87th Spanish Championship 2022"]
[Site "Linares"]
[Date "2022.08.12"]
[Round "2.22"]
[White "Tejedor Fuente, Enrique"]
[Black "De La Cruz Revilla, Miguel"]
[Result "1-0"]
[ECO "B40"]
[WhiteElo "2419"]
[BlackElo "2213"]
[Annotator "TA"]
[PlyCount "61"]
[EventDate "2022.08.11"]
[EventType "swiss"]
[EventCountry "ESP"]
[SourceTitle "playchess.com"]
[Source "ChessBase"]
[SourceQuality "1"]
[TimeControl "5400+30"]

{[%evp 9,61,6,5,2,7,0,6,0,0,7,0,0,13,11,11,8,52,37,33,36,46,8,35,30,61,52,50,41,80,78,116,117,102,118,135,140,157,109,106,107,183,188,182,103,247,233,203,211,332,333,563,523,1775,983]} 1. e4 {[%emt 0:00:43]} c5 {[%emt 0:00:17]} 2. Nf3 {[%emt 0:00:13]} e6 {[%emt 0:00:15]} 3. g3 {[%emt 0:00:58]} Nc6 {[%emt 0:00:27]} 4. Bg2 {[%emt 0:00:12]} Nf6 {[%emt 0:00:30]} 5. Qe2 {[%emt 0:00:51]} e5 {[%emt 0:00:11]} 6. d3 {[%emt 0:01:28] B40: Sicilian: 2...e6, Unusual lines.} Be7 {[%emt 0:02:15]} 7. O-O {[%emt 0:00:14]} O-O {[%emt 0:00:17]} 8. Nbd2 {[%emt 0:00:25] The position is equal.} d6 {[%emt 0:10:00]} 9. Nc4 {[%emt 0:03:16]} b5 {[%emt 0:21:46]} 10. Ne3 {[%emt 0:02:11]} Nd4 {[%emt 0:01:18]} 11. Qd1 {[%emt 0:02:00] [#]} Rb8 $146 {[%emt 0:04:44]} ({Predecessor:} 11... Re8 12. Nd2 Bb7 13. f4 exf4 14. gxf4 Bf8 15. Rf2 Qb6 16. Ndf1 c4 17. c3 Ne6 {0-1 (60) Murzin,V (2442)-Can,E (2600) Moscow 2020}) 12. Nd2 {[%emt 0:02:17]} Kh8 {[%emt 0:20:21]} 13. a4 {[%emt 0:02:26]} a6 {[%emt 0:01:52]} 14. c3 {[%emt 0:01:09]} Nc6 {[%emt 0:00:53]} 15. Kh1 {[%emt 0:01:13]} Ng8 {[%emt 0:09:42]} 16. f4 {[%emt 0:02:28]} Bf6 {[%emt 0:04:21]} 17. axb5 {[%emt 0:02:44]} axb5 {[%emt 0:00:27]} 18. Nf3 {[%emt 0:00:04]} b4 {[%emt 0:05:11]} 19. f5 {[%emt 0:00:54]} (19. Nd5 {looks sharper.} Be6 20. Ra6 bxc3 21. bxc3 Qc8 22. Qa4) 19... bxc3 {[%emt 0:02:13]} 20. bxc3 {[%emt 0:00:02]} Bd7 {[%emt 0:03:31]} 21. g4 {[%emt 0:00:51][%cal Bg3g4,Bg4g5][%mdl 32]} Bg5 {[%emt 0:02:21]} 22. Nxg5 {[%emt 0:03:59]} Qxg5 {[%emt 0:00:02]} 23. Qe1 {[%emt 0:03:27]} (23. Nc4 $142 Qe7 24. g5) 23... Qd8 $16 {[%emt 0:01:55]} 24. Nc4 {[%emt 0:01:33]} Be8 {[%emt 0:01:22]} (24... f6 $16 {was worth a try.}) 25. g5 {[%emt 0:01:43]} f6 {[%emt 0:00:19]} 26. Qh4 {[%emt 0:01:09]} (26. g6 $1 $18) 26... Rb3 {[%emt 0:01:53] [#] Black cannot hold the game after this.} (26... fxg5 $16 27. Bxg5 (27. Qxg5 Nf6 $14) 27... Nf6) 27. Rf3 $1 $18 {[%emt 0:01:32] Hoping for Rh3.} (27. g6 $6 h6 $16) 27... fxg5 {[%emt 0:03:16]} 28. Bxg5 $40 {[%emt 0:01:23][%mdl 128] White has strong attack.} (28. Qxg5 Bf7 $11) 28... Qb8 {[%emt 0:00:04] [#]} (28... Qc7 $142 29. f6 (29. Rh3 h6 $16) 29... Rxc3 30. fxg7+ Qxg7 31. Rxf8 (31. Nxd6 Rxf3 32. Bxf3 h6 $16) 31... Qxf8) 29. Rg1 $1 {[%emt 0:03:49]} ({Less strong is} 29. Rh3 Rb1+ 30. Bf1 h6 31. Rxb1 Qxb1 $16) 29... Rxc3 $2 {[%emt 0:01:31]} (29... Nf6 30. Rh3 h5) 30. Bf1 {[%emt 0:07:21] Black must now prevent Rh3.} (30. Rh3 h6 $16) 30... h6 {[%emt 0:01:39]} 31. f6 {[%emt 0:06:32] Weighted Error Value: White=0.08 (flawless) /Black=0.31} 1-0